lending/lending_fUSD_20250621
["ID","MTS","AMOUNT","RATE_DAILY","PERIOD"]
[366852244,1750516238611,-429.0,0.000229,2]
[366852246,1750516238621,-500.0,0.000229,2]
[366852248,1750516238631,-500.0,0.000229,2]
[366852250,1750516238640,-150.44106238,0.000229,2]
[366852252,1750516238650,-150.0,0.000229,2]
[366852254,1750516238660,-500.0,0.000229,2]
[366852255,1750516238669,-500.0,0.000229,2]
[366852256,1750516238681,-500.0,0.000229,2]
[366852257,1750516238691,-500.0,0.000229,2]
[366852258,1750516238701,-150.49237548,0.000229,2]
[366852259,1750516238708,-500.0,0.000229,2]
[366852260,1750516238717,-150.0,0.000229,2]
[366852261,1750516238725,-500.0,0.000229,2]
[366852262,1750516238733,-500.0,0.000229,2]
[366852263,1750516238742,-203.5949122,0.000229,2]
[366852264,1750516238751,-150.0,0.000229,2]
[366852265,1750516238760,-500.0,0.000229,2]
[366852266,1750516238770,-500.0,0.000229,2]
[366852267,1750516238779,-150.0,0.000229,2]
[366852268,1750516238789,-194.9415857,0.000229,2]
[366852269,1750516238799,-150.0,0.000229,2]
[366852270,1750516238810,-500.0,0.000229,2]
[366852271,1750516238819,-500.0,0.000229,2]
[366852272,1750516238830,-462.0,0.000229,2]
[366852273,1750516238840,-622.0,0.000229,2]
[366852274,1750516238850,-500.0,0.000229,2]
[366852275,1750516238859,-150.0,0.000229,2]
[366852276,1750516238869,-150.0,0.000229,2]
[366852277,1750516238880,-500.0,0.000229,2]
[366852278,1750516238889,-150.0,0.000229,2]
[366852279,1750516238899,-500.0,0.000229,2]
[366852280,1750516238909,-500.0,0.000229,2]
[366852281,1750516238921,-161.20205755,0.000229,2]
[366852282,1750516238935,-291.61889196,0.000229,2]
[366852283,1750516238945,-500.0,0.000229,2]
[366852284,1750516238955,-150.0,0.000229,2]
[366852285,1750516238965,-500.0,0.000229,2]
[366852286,1750516238974,-150.0,0.000229,2]
[366852287,1750516238984,-641.64251226,0.000229,2]
[366852288,1750516238993,-641.64251208,0.000229,2]
[366852289,1750516239003,-641.64251208,0.000229,2]
[366852290,1750516239013,-641.64251208,0.000229,2]
[366852291,1750516239022,-150.0,0.00022909,2]
[366852292,1750516239032,-502.50527384,0.00022914,2]
[366852293,1750516239042,-508.05917183,0.00022914,2]
[366852294,1750516239051,-500.0,0.00022927,2]
[366852295,1750516239061,-500.0,0.00022927,2]
[366852296,1750516239070,-565.51241609,0.00022927,2]
[366852297,1750516239079,-500.0,0.00022927,2]
[366852298,1750516239089,-155.82849506,0.00022927,2]
[366852299,1750516239100,-429.0,0.00022927,2]
[366852300,1750516239110,-500.0,0.00022927,2]
[366852301,1750516239120,-500.0,0.00022927,2]
[366852302,1750516239131,-151.31413614,0.00022927,2]
[366852303,1750516239141,-500.0,0.00022927,2]
[366852304,1750516239151,-500.0,0.00022927,2]
[366852305,1750516239161,-500.0,0.00022927,2]
[366852306,1750516239171,-508.14457128,0.00022927,2]
[366852307,1750516239183,-500.0,0.00022927,2]
[366852308,1750516239194,-150.0,0.00022927,2]
[366852309,1750516239204,-500.0,0.00022927,2]
[366852310,1750516239214,-500.0,0.00022927,2]
[366852311,1750516239224,-150.0,0.00022927,2]
[366852312,1750516239235,-500.0,0.00022927,2]
[366852313,1750516239244,-500.0,0.00022927,2]
[366852314,1750516239254,-150.0,0.00022927,2]
[366852315,1750516239264,-150.0,0.00022927,2]
[366852316,1750516239273,-500.0,0.00022927,2]
[366852317,1750516239283,-500.0,0.00022927,2]
[366852318,1750516239293,-462.0,0.00022927,2]
[366852319,1750516239303,-622.0,0.00022927,2]
[366852320,1750516239313,-500.0,0.00022927,2]
[366852321,1750516239322,-158.21118038,0.00022927,2]
[366852322,1750516239332,-150.0,0.00022927,2]
[366852323,1750516239342,-591.52395666,0.00022927,2]
[366852324,1750516239352,-150.0,0.00022927,2]
[366852325,1750516239362,-553.28165186,0.00022927,2]
[366852326,1750516239372,-500.0,0.00022927,2]
[366852327,1750516239382,-500.0,0.00022927,2]
[366852328,1750516239391,-500.0,0.00022927,2]
[366852329,1750516239402,-150.0,0.00022927,2]
[366852330,1750516239412,-150.0,0.00022948,2]
[366852331,1750516239423,-500.0,0.00022955,2]
[366852332,1750516239434,-500.0,0.00022955,2]
[366852333,1750516239444,-500.0,0.00022955,2]
[366852334,1750516239453,-429.0,0.00022955,2]
[366852335,1750516239464,-500.0,0.00022955,2]
[366852336,1750516239474,-500.0,0.00022955,2]
[366852338,1750516239484,-500.0,0.00022955,2]
[366852340,1750516239493,-500.0,0.00022955,2]
[366852341,1750516239504,-500.0,0.00022955,2]
[366852343,1750516239514,-500.0,0.00022955,2]
[366852345,1750516239524,-150.0,0.00022955,2]
[366852347,1750516239534,-500.0,0.00022955,2]
[366852349,1750516239544,-500.0,0.00022955,2]
[366852351,1750516239554,-150.0,0.00022955,2]
[366852352,1750516239563,-649.18749161,0.00022955,2]
[366852354,1750516239574,-211.64149646,0.00022955,2]
[366852356,1750516239584,-182.23679545,0.00022955,2]
[366852358,1750516239594,-150.0,0.00022955,2]
[366852360,1750516239605,-500.0,0.00022955,2]
[366852362,1750516239615,-500.0,0.00022955,2]
[366852364,1750516239624,-462.0,0.00022955,2]
[366852366,1750516239634,-622.0,0.00022955,2]
[366852368,1750516239644,-500.0,0.00022955,2]
[366852370,1750516239654,-236.97411969,0.00022955,2]
[366852390,1750516239988,-150.0,0.00022955,2]
[366852391,1750516239999,-500.0,0.00022955,2]
[366852392,1750516240010,-500.0,0.00022955,2]
[366852393,1750516240020,-500.0,0.00022955,2]
[366852394,1750516240029,-150.0,0.00022955,2]
[366852395,1750516240040,-500.0,0.00022982,2]
[366852396,1750516240050,-500.0,0.00022982,2]
[366852397,1750516240061,-500.0,0.00022982,2]
[366852398,1750516240070,-429.0,0.00022982,2]
[366852399,1750516240081,-500.0,0.00022982,2]
[366852400,1750516240090,-500.0,0.00022982,2]
[366852401,1750516240100,-500.0,0.00022982,2]
[366852402,1750516240110,-500.0,0.00022982,2]
[366852403,1750516240119,-500.0,0.00022982,2]
[366852404,1750516240129,-308.23207721,0.00022982,2]
[366852405,1750516240139,-150.0,0.00022982,2]
[366852406,1750516240149,-500.0,0.00022982,2]
[366852407,1750516240158,-419.04475821,0.00022982,2]
[366852408,1750516240168,-151.04634641,0.00022982,2]
[366852409,1750516240177,-152.30574078,0.00022982,2]
[366852410,1750516240187,-500.0,0.00022982,2]
[366852411,1750516240196,-500.0,0.00022982,2]
[366852412,1750516240205,-462.0,0.00022982,2]
[366852413,1750516240215,-622.0,0.00022982,2]
[366852414,1750516240225,-500.0,0.00022982,2]
[366852415,1750516240235,-160.99869309,0.00022982,2]
[366852416,1750516240245,-500.0,0.00022982,2]
[366852417,1750516240255,-500.0,0.00022982,2]
[366852418,1750516240265,-500.0,0.00022982,2]
[366852419,1750516240275,-150.0,0.00022982,2]
[366852420,1750516240284,-156.0,0.00023,5]
[366852421,1750516240295,-156.0,0.00023,5]
[366852422,1750516240305,-156.0,0.00023,4]
[366852423,1750516240315,-156.0,0.00023,4]
[366852425,1750516240324,-684.34005285,0.00023003,8]
[366852426,1750516240334,-500.0,0.0002301,2]
[366852427,1750516240344,-500.0,0.0002301,2]
[366852429,1750516240354,-500.0,0.0002301,2]
[366852431,1750516240364,-429.0,0.0002301,2]
[366852432,1750516240374,-500.0,0.0002301,2]
[366852433,1750516240384,-500.0,0.0002301,2]
[366852434,1750516240394,-500.0,0.0002301,2]
[366852435,1750516240404,-500.0,0.0002301,2]
[366852436,1750516240414,-500.0,0.0002301,2]
[366852437,1750516240424,-150.0,0.0002301,2]
[366852438,1750516240433,-379.74616341,0.0002301,2]
[366852439,1750516240444,-500.0,0.0002301,2]
[366852440,1750516240453,-628.6384077,0.0002301,2]
[366852441,1750516240464,-462.0,0.0002301,2]
[366852442,1750516240473,-622.0,0.0002301,2]
[366852443,1750516240483,-500.0,0.0002301,2]
[366852444,1750516240493,-500.0,0.0002301,2]
[366852445,1750516240503,-500.0,0.0002301,2]
[366852446,1750516240513,-500.0,0.0002301,2]
[366852447,1750516240523,-150.0,0.0002301,2]
[366852448,1750516240532,-150.0,0.00023012,2]
[366852449,1750516240542,-246.9694,0.00023036,2]
[366852450,1750516240552,-500.0,0.00023037,2]
[366852451,1750516240561,-500.0,0.00023037,2]
[366852452,1750516240571,-500.0,0.00023037,2]
[366852453,1750516240581,-429.0,0.00023037,2]
[366852454,1750516240592,-500.0,0.00023037,2]
[366852455,1750516240602,-500.0,0.00023037,2]
[366852456,1750516240612,-500.0,0.00023037,2]
[366852457,1750516240622,-500.0,0.00023037,2]
[366852458,1750516240632,-500.0,0.00023037,2]
[366852459,1750516240642,-211.28431149,0.00023037,2]
[366852460,1750516240652,-500.0,0.00023037,2]
[366852461,1750516240662,-462.0,0.00023037,2]
[366852462,1750516240672,-622.0,0.00023037,2]
[366852463,1750516240682,-500.0,0.00023037,2]
[366852464,1750516240691,-500.0,0.00023037,2]
[366852465,1750516240702,-500.0,0.00023037,2]
[366852466,1750516240711,-500.0,0.00023037,2]
[366852467,1750516240721,-154.98588961,0.00023037,2]
[366852468,1750516240731,-150.0,0.00023048,2]
[366852469,1750516240741,-500.0,0.00023064,2]
[366852470,1750516240751,-304.44958386,0.00023064,2]
[366852471,1750516240761,-500.0,0.00023064,2]
[366852472,1750516240771,-429.0,0.00023064,2]
[366852473,1750516240781,-500.0,0.00023064,2]
[366852474,1750516240791,-222.70707834,0.00023064,2]
[366852475,1750516240801,-500.0,0.00023064,2]
[366852476,1750516240811,-603.81100611,0.00023064,2]
[366852477,1750516240821,-186.05510742,0.00023064,2]
[366852478,1750516240831,-500.0,0.00023064,2]
[366852479,1750516240841,-462.0,0.00023064,2]
[366852480,1750516240851,-622.0,0.00023064,2]
[366852481,1750516240860,-500.0,0.00023064,2]
[366852482,1750516240870,-500.0,0.00023064,2]
[366852483,1750516240880,-347.69489885,0.00023064,2]
[366852484,1750516240890,-534.01412111,0.00023064,2]
[366852485,1750516240900,-1000.0,0.00023065,2]
[366852486,1750516240910,-150.0,0.00023073,2]
[366852487,1750516240924,-150.0,0.00023075,2]
[366852488,1750516240934,-150.0,0.00023077,2]
[366852489,1750516240943,-150.0,0.0002308,2]
[366852490,1750516240953,-420.0,0.00023088,2]
[366852491,1750516240963,-500.0,0.00023092,2]
[366852492,1750516240973,-500.0,0.00023092,2]
[366852493,1750516240983,-429.0,0.00023092,2]
[366852494,1750516240993,-155.48780062,0.00023092,2]
[366852495,1750516241002,-500.0,0.00023092,2]
[366852496,1750516241012,-500.0,0.00023092,2]
[366852497,1750516241022,-462.0,0.00023092,2]
[366852498,1750516241031,-622.0,0.00023092,2]
[366852499,1750516241041,-500.0,0.00023092,2]
[366852500,1750516241051,-500.0,0.00023092,2]
[366852501,1750516241061,-300.0,0.00023094,2]
[366852502,1750516241071,-834.26476573,0.00023107,2]
[366852503,1750516241081,-500.0,0.00023119,2]
[366852504,1750516241090,-500.0,0.00023119,2]
[366852505,1750516241100,-429.0,0.00023119,2]
[366852506,1750516241110,-500.0,0.00023119,2]
[366852507,1750516241120,-500.0,0.00023119,2]
[366852508,1750516241129,-462.0,0.00023119,2]
[366852509,1750516241138,-622.0,0.00023119,2]
[366852510,1750516241148,-500.0,0.00023119,2]
[366852511,1750516241158,-500.0,0.00023119,2]
[366852512,1750516241168,-500.0,0.00023147,2]
[366852513,1750516241178,-500.0,0.00023147,2]
[366852514,1750516241188,-429.0,0.00023147,2]
[366852515,1750516241197,-500.0,0.00023147,2]
[366852516,1750516241207,-500.0,0.00023147,2]
[366852517,1750516241216,-462.0,0.00023147,2]
[366852518,1750516241226,-622.0,0.00023147,2]
[366852519,1750516241235,-500.0,0.00023147,2]
[366852520,1750516241245,-500.0,0.00023147,2]
[366852521,1750516241254,-150.0,0.00023152,2]
[366852522,1750516241263,-424.99837877,0.00023174,2]
[366852523,1750516241273,-500.0,0.00023174,2]
[366852524,1750516241283,-429.0,0.00023174,2]
[366852525,1750516241293,-500.0,0.00023174,2]
[366852526,1750516241302,-500.0,0.00023174,2]
[366852527,1750516241312,-462.0,0.00023174,2]
[366852528,1750516241322,-622.0,0.00023174,2]
[366852529,1750516241332,-320.12094998,0.00023174,2]
[366852530,1750516241342,-425.86366811,0.00023174,2]
[366852531,1750516241352,-500.0,0.00023201,2]
[366852532,1750516241362,-429.0,0.00023201,2]
[366852533,1750516241372,-500.0,0.00023201,2]
[366852534,1750516241382,-500.0,0.00023201,2]
[366852535,1750516241392,-462.0,0.00023201,2]
[366852536,1750516241402,-622.0,0.00023201,2]
[366852537,1750516241413,-500.0,0.00023229,2]
[366852538,1750516241423,-429.0,0.00023229,2]
[366852539,1750516241434,-225.03574709,0.00023229,2]
[366852540,1750516241444,-500.0,0.00023229,2]
[366852541,1750516241454,-462.0,0.00023229,2]
[366852542,1750516241464,-622.0,0.00023229,2]
[366852543,1750516241473,-150.0,0.00023234,2]
[366852544,1750516241483,-163.58,0.00023239,2]
[366852545,1750516241494,-163.58,0.00023239,2]
[366852546,1750516241504,-163.58,0.00023239,2]
[366852547,1750516241513,-163.58,0.00023239,2]
[366852548,1750516241522,-163.58,0.00023239,2]
[366852549,1750516241531,-150.0,0.00023254,2]
[366852550,1750516241541,-500.0,0.00023256,2]
[366852551,1750516241550,-429.0,0.00023256,2]
[366852552,1750516241559,-500.0,0.00023256,2]
[366852553,1750516241568,-462.0,0.00023256,2]
[366852554,1750516241577,-622.0,0.00023256,2]
[366852555,1750516241586,-150.0,0.00023273,2]
[366852556,1750516241595,-150.0,0.00023275,2]
[366852557,1750516241605,-500.0,0.00023284,2]
[366852558,1750516241614,-429.0,0.00023284,2]
[366852559,1750516241623,-480.81427442,0.00023284,2]
[366852560,1750516241632,-462.0,0.00023284,2]
[366852561,1750516241642,-622.0,0.00023284,2]
[366852562,1750516241651,-946.0,0.0002329,2]
[366852563,1750516241660,-3335.0,0.0002329,2]
[366852564,1750516241669,-4095.0,0.0002329,2]
[366852565,1750516241680,-512.55715163,0.00023311,2]
[366852566,1750516241689,-429.0,0.00023311,2]
[366852567,1750516241698,-462.0,0.00023311,2]
[366852568,1750516241707,-622.0,0.00023311,2]
[366852569,1750516241717,-942.66378871,0.00023318,2]
[366852570,1750516241727,-429.0,0.00023338,2]
[366852571,1750516241737,-462.0,0.00023338,2]
[366852572,1750516241747,-622.0,0.00023338,2]
[366852573,1750516241757,-163.58,0.00023344,2]
[366852574,1750516241767,-164.7,0.00023344,2]
[366852575,1750516241777,-163.58,0.00023344,2]
[366852576,1750516241787,-163.58,0.00023344,2]
[366852577,1750516241797,-163.58,0.00023344,2]
[366852578,1750516241807,-157.65,0.00023344,2]
[366852579,1750516241816,-150.0,0.00023365,2]
[366852580,1750516241826,-429.0,0.00023366,2]
[366852581,1750516241836,-462.0,0.00023366,2]
[366852582,1750516241847,-622.0,0.00023366,2]
[366852583,1750516241856,-150.0,0.00023387,2]
[366852584,1750516241866,-429.0,0.00023393,2]
[366852585,1750516241876,-462.0,0.00023393,2]
[366852586,1750516241886,-622.0,0.00023393,2]
[366852587,1750516241897,-7697.1310959,0.00023413,2]
[366852588,1750516241907,-429.0,0.00023421,2]
[366852589,1750516241919,-462.0,0.00023421,2]
[366852590,1750516241934,-622.0,0.00023421,2]
[366852591,1750516241944,-150.0,0.00023438,2]
[366852592,1750516241954,-429.0,0.00023448,2]
[366852593,1750516241965,-462.0,0.00023448,2]
[366852594,1750516241975,-622.0,0.00023448,2]
[366852595,1750516241985,-429.0,0.00023475,2]
[366852596,1750516242000,-462.0,0.00023475,2]
[366852597,1750516242010,-622.0,0.00023475,2]
[366852598,1750516242019,-1000.0,0.00023488,2]
[366852599,1750516242029,-163.72,0.00023489,2]
[366852600,1750516242039,-150.0,0.00023497,2]
[366852601,1750516242049,-3947.84211834,0.000235,2]
[366852602,1750516242058,-1000.0,0.00023501,2]
[366852603,1750516242068,-246.95121254,0.00023502,4]
[366852604,1750516242079,-429.0,0.00023503,2]
[366852605,1750516242088,-462.0,0.00023503,2]
[366852606,1750516242099,-622.0,0.00023503,2]
[366852607,1750516242109,-151.0,0.00023524,7]
[366852608,1750516242118,-151.0,0.00023524,7]
[366852609,1750516242129,-4131.0196887,0.0002353,2]
[366852610,1750516242138,-7094.078409,0.0002353,2]
[366852611,1750516242148,-150.0,0.0002353,2]
[366852612,1750516242158,-5692.0968024,0.0002353,2]
[366852613,1750516242168,-433.0,0.0002353,2]
[366852614,1750516242178,-475.0,0.0002353,2]
[366852615,1750516242189,-628.47890316,0.0002353,2]
[366852616,1750516242198,-151.0,0.00023532,2]
[366852617,1750516242208,-151.0,0.00023532,2]
[366852618,1750516242219,-151.0,0.00023546,2]
[366852619,1750516242229,-1957.856,0.00023546,2]
[366852620,1750516242239,-207.4,0.00023546,2]
[366852621,1750516242249,-150.0,0.00023553,2]
[366852622,1750516242259,-684.34005285,0.00023555,9]
[366852623,1750516242269,-2030.296672,0.00023601,2]
[366852624,1750516242280,-150.0,0.00023642,2]
[366852625,1750516242289,-300.0,0.00023642,2]
[366852626,1750516242299,-202.0,0.00023654,11]
[366852627,1750516242309,-2105.41764886,0.00023656,2]
[366852628,1750516242319,-2183.31810187,0.00023711,2]
[366852629,1750516242329,-150.0,0.00023716,2]
[366852630,1750516242339,-150.0,0.0002372,2]
[366852631,1750516242348,-150.0,0.00023734,2]
[366852632,1750516242364,-150.0,0.00023743,2]
[366852633,1750516242374,-2264.10087164,0.00023766,2]
[366852634,1750516242385,-150.0,0.00023776,2]
[366852635,1750516242396,-150.0,0.00023795,2]
[366852636,1750516242407,-150.0,0.000238,2]
[366852637,1750516242418,-110000.0,0.000238,7]
[366852639,1750516242432,-150.0,0.00023821,2]
[366852640,1750516242442,-150.0,0.00023821,2]
[366852643,1750516242453,-2347.87260389,0.00023821,2]
[366852644,1750516242464,-150.0,0.00023834,2]
[366852645,1750516242476,-243.0,0.00023836,2]
[366852646,1750516242487,-150.0,0.00023837,2]
[366852647,1750516242497,-150.0,0.00023855,2]
[366852648,1750516242508,-2434.74389024,0.00023876,2]
[366852650,1750516242518,-150.0,0.00023899,2]
[366852651,1750516242529,-300.0,0.000239,8]
[366852652,1750516242539,-1023.13084586,0.00023931,2]
[366852653,1750516242550,-5000.0,0.00023961,2]
[366852655,1750516242560,-1318.0,0.00023979,2]
[366852657,1750516242571,-285.87345,0.00023989,2]
[366852658,1750516242581,-7697.1310959,0.00023999,2]
[366852660,1750516242591,-156.0,0.00024,5]
[366852661,1750516242602,-156.0,0.00024,5]
[366852662,1750516242613,-558.6462,0.00024008,3]
[366852663,1750516242623,-150.0,0.00024019,2]
[366852664,1750516242633,-150.0,0.00024031,2]
[366852665,1750516242643,-180.78,0.0002404,2]
[366852666,1750516242653,-150.0,0.00024048,2]
[366852667,1750516242664,-163.58,0.0002406,2]
[366852668,1750516242674,-163.58,0.0002406,2]
[366852669,1750516242686,-163.31,0.0002406,2]
[366852670,1750516242696,-168.0,0.00024086,2]
[366852671,1750516242707,-684.34005285,0.00024107,10]
[366852672,1750516242717,-1052.26885355,0.00024108,2]
[366852673,1750516242727,-1129.85946487,0.00024108,2]
[366852674,1750516242737,-405.72,0.00024157,2]
[366852675,1750516242747,-300.0,0.0002419,2]
[366852676,1750516242757,-150.0,0.00024192,2]
[366852677,1750516242767,-150.0,0.00024216,2]
[366852678,1750516242777,-150.0,0.00024224,2]
[366852679,1750516242787,-1000.0,0.00024237,2]
[366852680,1750516242797,-168.0,0.00024247,2]
[366852681,1750516242807,-150.0,0.00024287,2]
[366852682,1750516242818,-3947.84211834,0.000243,2]
[366852683,1750516242828,-1000.0,0.000243,2]
[366852684,1750516242839,-150.0,0.00024349,2]
[366852685,1750516242849,-150.0,0.00024364,2]
[366852686,1750516242859,-482.0,0.00024387,2]
[366852687,1750516242870,-638.0,0.0002439,2]
[366852688,1750516242880,-1081.907,0.0002439,2]
[366852689,1750516242890,-559.0,0.0002439,2]
[366852690,1750516242900,-591.0,0.0002439,2]
[366852691,1750516242910,-928.0,0.0002439,2]
[366852692,1750516242924,-2005.0,0.0002439,2]
[366852693,1750516242935,-1676.0,0.0002439,2]
[366852694,1750516242945,-1171.578,0.0002439,2]
[366852695,1750516242955,-150.0,0.00024391,2]
[366852696,1750516242965,-150.0,0.00024446,2]
[366852697,1750516242975,-150.0,0.00024446,2]
[366852698,1750516242985,-150.0,0.0002447,2]
[366852699,1750516242995,-500.0,0.00024473,2]
[366852700,1750516243006,-500.0,0.00024473,2]
[366852701,1750516243015,-500.0,0.00024473,2]
[366852702,1750516243025,-500.0,0.00024473,2]
[366852703,1750516243034,-500.0,0.00024473,2]
[366852704,1750516243044,-540.30081214,0.00024473,2]
[366852705,1750516243054,-139660.5117,0.000245,2]
[366852706,1750516243064,-166.84,0.00024503,2]
[366852707,1750516243073,-150.0,0.00024545,2]
[366852708,1750516243083,-373.22618803,0.00024558,2]
[366852709,1750516243093,-150.0,0.00024577,2]
[366852710,1750516243103,-7697.1310959,0.00024585,2]
[366852711,1750516243113,-150.0,0.00024589,2]
[366852713,1750516243122,-557.14607637,0.00024591,2]
[366852715,1750516243132,-2470.839036,0.000246,2]
[366852717,1750516243142,-2000.0,0.000246,2]
[366852719,1750516243152,-200.0,0.000246,2]
[366852721,1750516243162,-2000.0,0.0002461,2]
[366852723,1750516243172,-2000.0,0.0002462,2]
[366852725,1750516243182,-150.0,0.00024624,2]
[366852727,1750516243191,-150.0,0.00024625,2]
[366852729,1750516243201,-2223.961913,0.0002463,2]
[366852732,1750516243211,-611.964,0.0002464,7]
[366852735,1750516243221,-810.75,0.00024643,2]
[366852738,1750516243231,-1000.0,0.00024657,2]
[366852741,1750516243241,-2000.0,0.00024658,15]
[366852743,1750516243251,-6015.0,0.00024658,4]
[366852745,1750516243261,-101773.28352328,0.00024658,4]
[366852746,1750516243270,-151.0,0.00024658,7]
[366852747,1750516243279,-150.0,0.00024658,2]
[366852748,1750516243289,-684.34005285,0.00024659,11]
[366852750,1750516243299,-500.0,0.0002467,2]
[366852752,1750516243309,-500.0,0.0002467,2]
[366852754,1750516243318,-500.0,0.0002467,2]
[366852756,1750516243328,-600.91536243,0.0002467,2]
[366852758,1750516243338,-1000.0,0.0002467,2]
[366852759,1750516243348,-1000.0,0.0002467,2]
[366852760,1750516243357,-1000.0,0.0002467,2]
[366852761,1750516243367,-1400.0,0.0002467,2]
[366852762,1750516243377,-159.99635359,0.00024673,2]
[366852763,1750516243386,-160.17830352,0.00024673,2]
[366852764,1750516243396,-500.0,0.00024673,2]
[366852765,1750516243405,-500.0,0.00024673,2]
[366852766,1750516243415,-361.00977431,0.00024673,2]
[366852767,1750516243424,-160.1772958,0.00024673,2]
[366852768,1750516243434,-500.0,0.00024673,2]
[366852769,1750516243443,-378.45726116,0.00024673,2]
[366852770,1750516243453,-500.0,0.00024673,2]
[366852771,1750516243463,-559.12118164,0.00024673,2]
[366852772,1750516243473,-150.0,0.00024685,2]
[366852773,1750516243483,-150.0,0.00024688,2]
[366852774,1750516243492,-196.47,0.00024689,2]
[366852775,1750516243502,-250000.0,0.0002469,7]
[366852776,1750516243512,-1834.2375805,0.0002469,2]
[366852777,1750516243521,-150.0,0.00024692,4]
[366852778,1750516243531,-150.0,0.00024692,4]
[366852779,1750516243541,-150.0,0.00024692,4]
[366852780,1750516243550,-150.0,0.00024692,4]
[366852781,1750516243559,-150.0,0.00024692,4]
[366852782,1750516243569,-150.0,0.00024692,4]
[366852783,1750516243578,-150.0,0.00024692,4]
[366852784,1750516243588,-34373.95721264,0.00024692,2]
[366852785,1750516243599,-64995.61535323,0.00024699,2]
[366852786,1750516243609,-12294.28,0.000247,2]
[366852787,1750516243618,-758674.91257173,0.000247,2]
[366852788,1750516243628,-150.0,0.000247,2]
[366852789,1750516243638,-200.0,0.000247,2]
[366852790,1750516243648,-168.0,0.00024712,2]
[366852791,1750516243656,-203.59867748,0.00024713,2]
[366852792,1750516243664,-300.0,0.00024738,2]
[366852793,1750516243673,-150.0,0.00024751,2]
[366852794,1750516243683,-1000.0,0.00024753,2]
[366852795,1750516243693,-500.0,0.00024773,2]
[366852796,1750516243702,-181.79436086,0.00024773,2]
[366852797,1750516243712,-500.0,0.00024773,2]
[366852798,1750516243722,-500.0,0.00024773,2]
[366852799,1750516243731,-150.0,0.00024799,10]
[366852800,1750516243741,-700.0,0.000248,9]
[366852801,1750516243751,-834.26476573,0.000248,3]
[366852802,1750516243760,-413381.379889,0.000248,3]
[366852803,1750516243770,-152.040102,0.00024803,7]
[366852804,1750516243779,-151.0,0.00024803,7]
[366852805,1750516243789,-151.0,0.00024803,7]
[366852806,1750516243799,-151.0,0.00024803,7]
[366852807,1750516243808,-151.0,0.00024803,7]
[366852808,1750516243818,-150.0,0.0002481,2]
[366852809,1750516243827,-168.0,0.00024836,2]
[366852810,1750516243837,-150.0,0.00024837,2]
[366852811,1750516243846,-200.0,0.00024846,2]
[366852812,1750516243856,-150.0,0.00024857,2]
[366852813,1750516243866,-150.0,0.00024894,2]
[366852814,1750516243875,-151.395825,0.000249,7]
[366852815,1750516243885,-151.0,0.000249,7]
[366852816,1750516243895,-151.0,0.000249,7]
[366852817,1750516243905,-151.0,0.000249,7]